bitfinex-derivatives/quotes_BNBF0:USTF0_20250807
["timestamp","ask_amount","ask_price","bid_price","bid_amount"]
[1754593068733,0.85701546,777.9,777.41,0.85962654]
[1754593068936,0.85701546,777.89,777.4,0.85962654]
[1754593069136,0.86348279,777.99,777.4,0.85962654]
[1754593069337,0.85699358,777.98,777.4,0.85962654]
[1754593069535,0.85699358,777.97,777.4,0.85962654]
[1754593069736,0.85699358,777.96,777.4,0.85962654]
[1754593069939,0.85699358,777.95,777.4,0.85962654]
[1754593070235,0.85699358,777.94,777.4,0.85962654]
[1754593070435,0.85699358,777.93,777.4,0.85962654]
[1754593070641,0.85699358,777.92,777.4,0.85962654]
[1754593070838,0.85699358,777.91,777.4,0.85962654]
[1754593071036,0.85699358,777.9,777.4,0.85962654]
[1754593071236,0.85699358,777.89,777.41,0.85962654]
[1754593071436,0.86348279,777.99,777.4,0.85962654]
[1754593071637,1.72048887,777.98,777.41,0.85962654]
[1754593071942,0.85700608,777.97,777.39,0.85962654]
[1754593072135,0.85700608,777.96,777.39,0.85962654]
[1754593072440,0.85700608,777.95,777.39,0.85962654]
[1754593072636,0.85700608,777.94,777.39,0.85962654]
[1754593072938,0.85700608,777.93,777.39,0.85962654]
[1754593073137,0.85700608,777.92,777.3,0.85962654]
[1754593073336,0.85700608,777.91,777.3,0.85962654]
[1754593073540,0.85700608,777.9,777.3,0.85962654]
[1754593073737,0.85700608,777.89,777.29,0.85962654]
[1754593073936,0.85700608,777.88,777.29,0.85962654]
[1754593074138,0.85700608,777.87,777.29,0.85962654]
[1754593074338,0.85700608,777.86,777.29,0.85962654]
[1754593074534,0.85700608,777.85,777.29,0.85962654]
[1754593074739,0.86348279,777.96,777.29,0.85962654]
[1754593074940,0.905,778.08,777.29,0.85962654]
[1754593074941,1.72056249,777.95,777.29,0.85962654]
[1754593075141,0.8570797,777.94,777.29,0.85962654]
[1754593075437,0.8570797,777.93,777.29,0.85962654]
[1754593075638,0.8570797,777.92,777.29,0.85962654]
[1754593075939,0.85710041,777.91,777.29,0.85962654]
[1754593076142,0.85710041,777.9,777.27,0.85962654]
[1754593076339,0.85710041,777.89,777.27,0.85962654]
[1754593076642,0.85710041,777.88,777.24,0.85962654]
[1754593076841,0.85710041,777.87,777.24,0.85962654]
[1754593077039,0.85712186,777.86,777.24,0.85962654]
[1754593077242,0.86348279,777.99,777.24,0.85962654]
[1754593077443,0.85712747,777.98,777.2,0.85962654]
[1754593077641,0.85712747,777.97,777.2,0.85962654]
[1754593077837,0.85712747,777.96,777.2,0.85962654]
[1754593078038,0.85712747,777.95,777.2,0.85962654]
[1754593078240,0.86348279,778.05,777.2,0.85962654]
[1754593078443,0.86348279,778.06,777.21,0.85962654]
[1754593078642,0.905,778.08,777.24,0.85962654]
[1754593078844,0.85585781,778.07,777.23,0.85962654]
[1754593079038,0.905,778.08,777.3,0.85962654]
[1754593079638,0.905,778.08,777.34,0.85962654]
[1754593079842,0.905,778.08,777.46,0.85962654]
[1754593080445,0.85572743,778.07,777.49,0.85962654]
[1754593080646,0.85572743,778.06,777.49,0.85962654]
[1754593080844,0.905,778.08,777.49,0.85962654]
[1754593081041,0.85572752,778.07,777.49,0.85962654]
[1754593081345,0.905,778.08,777.51,0.8602505]
[1754593081641,0.905,778.08,777.5,0.8602505]
[1754593082347,0.905,778.08,777.51,0.8602505]
[1754593083141,0.22365614,778.38,777.51,0.8602505]
[1754593083345,0.85510422,778.37,777.52,0.8602505]
[1754593083546,0.85510422,778.36,777.52,0.8602505]
[1754593083742,0.85510422,778.35,777.52,0.8602505]
[1754593083943,0.22365614,778.38,777.52,0.8602505]
[1754593084148,0.85508931,778.37,777.53,0.8602505]
[1754593084445,0.85508931,778.36,777.52,0.8602505]
[1754593084646,0.85508931,778.35,777.52,0.8602505]
[1754593084844,0.85508931,778.34,777.52,0.8602505]
[1754593085147,1.69308931,778.33,777.52,0.8602505]
[1754593085343,0.85508931,778.32,777.51,0.8602505]
[1754593085548,0.85508931,778.31,777.51,0.8602505]
[1754593085748,0.85508931,778.3,777.51,0.8602505]
[1754593085943,0.85508931,778.29,777.51,0.8602505]
[1754593086143,0.85508931,778.28,777.52,0.8602505]
[1754593086342,0.85508931,778.27,777.51,0.8602505]
[1754593086643,0.838,778.33,777.51,0.8602505]
[1754593086644,0.85508931,778.26,777.51,0.8602505]
[1754593086847,0.85508931,778.25,777.51,0.8602505]
[1754593087044,0.85457174,778.24,777.51,0.8602505]
[1754593087346,0.85457174,778.23,777.51,0.8602505]
[1754593087546,0.85457174,778.22,777.51,0.8602505]
[1754593087744,0.85457174,778.21,777.51,0.8602505]
[1754593087944,0.85457174,778.2,777.51,0.8602505]
[1754593088243,0.838,778.33,777.51,0.8602505]
[1754593088449,0.85431492,778.32,777.5,0.8602505]
[1754593088749,0.85431492,778.31,777.5,0.8602505]
[1754593089048,0.85431492,778.3,777.5,0.8602505]
[1754593089348,0.85431492,778.29,777.49,0.8602505]
[1754593089548,0.85431492,778.28,777.49,0.8602505]
[1754593089850,0.85431492,778.27,777.49,0.8602505]
[1754593090044,0.85431492,778.26,777.49,0.8602505]
[1754593090245,0.85431492,778.25,777.49,0.8602505]
[1754593090445,0.85431492,778.24,777.49,0.8602505]
[1754593090650,0.85431492,778.23,777.49,0.8602505]
[1754593090950,0.85431492,778.22,777.52,0.8602505]
[1754593091150,0.85431492,778.21,777.54,0.8602505]
[1754593091351,0.85431492,778.2,777.54,0.8602505]
[1754593091647,0.85431492,778.19,777.54,0.8602505]
[1754593091849,0.85431492,778.18,777.54,0.8602505]
[1754593092048,0.85431492,778.17,777.54,0.8602505]
[1754593092252,0.838,778.33,777.54,0.8602505]
[1754593092452,0.85394372,778.32,777.55,0.8602505]
[1754593092651,0.85394372,778.31,777.55,0.8602505]
[1754593093048,0.85394353,778.3,777.55,0.8602505]
[1754593093350,0.85394353,778.29,777.54,0.8602505]
[1754593093653,0.85387225,778.28,777.54,0.8602505]
[1754593093852,0.85387225,778.27,777.54,0.8602505]
[1754593094052,0.85387225,778.26,777.54,0.8602505]
[1754593094349,0.85387225,778.25,777.54,0.8602505]
[1754593094552,0.85387225,778.24,777.54,0.8602505]
[1754593094748,0.85387225,778.23,777.54,0.8602505]
[1754593094951,0.85387225,778.22,777.53,0.8602505]
[1754593095151,0.85387225,778.21,777.53,0.8602505]
[1754593095347,0.85387225,778.2,777.52,0.8602505]
[1754593095648,0.85387225,778.19,777.52,0.8602505]
[1754593095851,0.85387225,778.18,777.52,0.8602505]
[1754593096054,0.838,778.33,777.52,0.8602505]
[1754593096253,0.85370371,778.32,777.52,0.8602505]
[1754593096555,0.85370371,778.31,777.52,0.8602505]
[1754593096749,0.85370371,778.3,777.52,0.8602505]
[1754593096951,0.85370371,778.29,777.52,0.8602505]
[1754593097148,0.85370371,778.28,777.51,0.8602505]
[1754593097349,0.85370371,778.27,777.51,0.8602505]
[1754593097552,0.85370371,778.26,777.51,0.8602505]
[1754593097750,0.85370371,778.25,777.51,0.8602505]
[1754593097952,0.85370371,778.24,777.51,0.8602505]
[1754593098153,0.85370371,778.23,777.51,0.8602505]
[1754593098355,0.85370371,778.22,777.51,0.8602505]
[1754593098651,0.85370371,778.21,777.51,0.8602505]
[1754593098854,0.8536285,778.2,777.51,0.8602505]
[1754593099057,0.8536285,778.19,777.51,0.8602505]
[1754593099255,0.802,778.2,777.51,0.8602505]
[1754593099554,0.85359956,778.19,777.51,0.8602505]
[1754593099754,0.802,778.2,777.51,0.8602505]
[1754593099952,0.8535996,778.19,777.51,0.8602505]
[1754593100251,0.802,778.2,777.51,0.8602505]
[1754593100458,0.85357863,778.19,777.51,0.8602505]
[1754593100657,0.85357863,778.18,777.51,0.8602505]
[1754593100957,0.802,778.2,777.52,0.8602505]
[1754593101156,0.85357863,778.19,777.51,0.8602505]
[1754593101351,0.85357863,778.18,777.51,0.8602505]
[1754593101556,0.802,778.2,777.51,0.8602505]
[1754593101753,0.85356345,778.19,777.51,0.8602505]
[1754593101958,0.85356345,778.18,777.51,0.8602505]
[1754593102159,0.802,778.2,777.42,0.8602505]
[1754593103958,0.802,778.2,777.49,0.8602505]
[1754593105360,0.802,778.2,777.48,0.8602505]
[1754593105659,0.802,778.2,777.49,0.8602505]
[1754593106259,0.802,778.2,777.48,0.8602505]
[1754593109468,0.802,778.2,777.47,0.8602505]
[1754593110871,0.802,778.2,777.5,0.8602505]
[1754593111268,0.802,778.2,777.49,0.8602505]
[1754593111768,0.802,778.2,777.5,0.8602505]
[1754593111968,0.802,778.2,777.52,0.8602505]
[1754593114272,0.802,778.2,777.31,1.1493026]
[1754593114273,0.802,778.2,777.51,0.8602505]
[1754593114474,0.802,778.2,777.41,0.8602505]
[1754593115475,0.802,778.2,777.45,0.8602505]
[1754593115875,0.802,778.2,777.47,0.8602505]
[1754593116373,0.802,778.2,777.46,0.8602505]
[1754593117075,0.802,778.2,777.47,0.8602505]
[1754593117774,0.802,778.2,777.48,0.8602505]
[1754593118170,0.802,778.2,777.49,0.8602505]
[1754593119481,0.802,778.2,777.51,0.8602505]
[1754593120181,0.802,778.2,777.52,0.8602505]
[1754593121281,0.802,778.2,777.25,1.1493026]
[1754593121282,0.802,778.2,777.51,0.8602505]
[1754593121482,0.802,778.2,777.53,0.8602505]
[1754593124084,0.802,778.2,777.56,0.8602505]
[1754593124384,0.802,778.2,777.6,0.8602505]
[1754593126182,0.802,778.2,777.62,0.8602505]
[1754593126381,0.802,778.2,777.63,0.8602505]
[1754593127181,0.802,778.2,777.64,0.8602505]
[1754593128285,0.802,778.2,777.65,0.8602505]
[1754593128880,0.802,778.2,777.66,0.8602505]
[1754593129682,0.802,778.2,777.65,0.8602505]
[1754593129988,0.802,778.2,777.64,0.8602505]
[1754593130286,0.802,778.2,777.65,0.8602505]
[1754593131285,0.802,778.2,777.66,0.8602505]
[1754593132787,0.802,778.2,777.67,0.8602505]
[1754593133084,0.802,778.2,777.66,0.8602505]
[1754593133583,0.802,778.2,777.51,1.1493026]
[1754593133584,0.802,778.2,777.67,0.8602505]
[1754593134189,0.802,778.2,777.68,0.8602505]
[1754593135291,0.802,778.2,777.69,0.8602505]
[1754593135591,0.802,778.2,777.7,0.8602505]
[1754593136192,0.802,778.2,777.71,0.8602505]
[1754593137190,0.802,778.2,777.73,0.8602505]
[1754593138193,0.802,778.2,777.75,0.8602505]
[1754593139190,0.802,778.2,777.77,0.8602505]
[1754593139591,0.802,778.2,777.78,0.8602505]
[1754593141396,0.86586083,778.47,777.78,0.8602505]
[1754593141591,0.85486946,778.46,777.78,0.8602505]
[1754593141793,0.85486946,778.45,777.79,0.8602505]
[1754593141990,0.85486946,778.44,777.79,0.8602505]
[1754593142195,0.85486946,778.43,777.79,0.8602505]
[1754593142392,0.85486946,778.42,777.79,0.8602505]
[1754593142693,0.85486946,778.41,777.79,0.8602505]
[1754593142897,1.83786946,778.4,777.79,0.8602505]
[1754593143097,0.85486946,778.39,777.78,0.8602505]
[1754593143294,0.85486946,778.39,777.79,0.8602505]
[1754593143495,0.85486946,778.39,777.8,0.8602505]
[1754593144397,0.85486946,778.39,777.78,0.8602505]
[1754593145000,0.983,778.4,777.78,0.8602505]
[1754593147999,0.983,778.4,777.77,0.8602505]
[1754593148300,0.983,778.4,777.75,0.8602505]
[1754593149299,0.983,778.4,777.56,1.1493026]
[1754593149300,0.983,778.4,777.74,0.8602505]
[1754593149503,0.983,778.4,777.76,0.8602505]
[1754593149701,0.983,778.4,777.75,0.8602505]
[1754593150700,0.983,778.4,777.77,0.8602505]
[1754593150900,0.983,778.4,777.82,0.8602505]
[1754593158104,0.983,778.4,777.83,0.8602505]
[1754593158306,0.983,778.4,777.84,0.8602505]
[1754593159105,0.983,778.4,777.85,0.8602505]
[1754593159708,0.983,778.4,777.88,0.8602505]
[1754593161312,0.983,778.4,777.59,1.7222713]
[1754593161313,0.983,778.4,777.89,0.8602505]
[1754593162308,0.983,778.4,777.91,0.8602505]
[1754593163112,0.85518094,778.39,777.91,0.8602505]
[1754593163310,0.983,778.4,777.91,0.8602505]
[1754593163508,0.85517078,778.39,777.91,0.8602505]
[1754593163712,0.983,778.4,777.91,0.8602505]
[1754593163909,0.983,778.4,777.92,0.8602505]
[1754593164212,0.85530376,778.39,777.92,0.8602505]
[1754593164410,0.85529429,778.38,777.92,0.8602505]
[1754593164715,0.983,778.4,777.92,0.8602505]
[1754593164913,0.85529439,778.39,777.92,0.8602505]
[1754593165210,0.85529439,778.38,777.92,0.8602505]
[1754593165412,0.983,778.4,777.92,0.8602505]
[1754593165608,0.85533888,778.39,777.92,0.8602505]
[1754593165813,0.85533888,778.38,777.92,0.8602505]
[1754593166013,0.983,778.4,777.92,0.8602505]
[1754593166214,0.85539187,778.39,777.92,0.8602505]
[1754593166414,0.85539187,778.38,777.92,0.8602505]
[1754593166714,0.85539022,778.37,777.92,0.8602505]
[1754593166914,0.983,778.4,777.92,0.8602505]
[1754593167116,0.85539022,778.39,777.92,0.8602505]
[1754593167315,0.85539022,778.38,777.92,0.8602505]
[1754593167609,0.983,778.4,777.91,0.8602505]
[1754593167812,0.85566633,778.39,777.91,0.8602505]
[1754593168011,0.85566633,778.38,777.91,0.8602505]
[1754593168214,0.85566633,778.37,777.91,0.8602505]
[1754593168414,0.983,778.4,777.92,0.8602505]
[1754593168617,0.85573166,778.39,777.92,0.8602505]
[1754593168817,0.85573166,778.38,777.92,0.8602505]
[1754593169014,0.85573166,778.37,777.92,0.8602505]
[1754593169213,0.983,778.4,777.92,0.8602505]
[1754593169414,0.85580522,778.39,777.92,0.8602505]
[1754593169616,0.85580522,778.38,777.92,0.8602505]
[1754593169913,0.85580522,778.37,777.92,0.8602505]
[1754593170117,0.86586083,778.5,777.92,0.8602505]
[1754593170316,0.85588844,778.49,777.87,0.8602505]
[1754593170613,0.85588844,778.48,777.87,0.8602505]
[1754593170811,0.85588844,778.47,777.87,0.8602505]
[1754593171117,0.85588844,778.46,777.87,0.8602505]
[1754593171314,0.85588844,778.45,777.87,0.8602505]
[1754593171514,0.85588844,778.44,777.87,0.8602505]
[1754593171712,0.85588844,778.43,777.87,0.8602505]
[1754593171913,0.85588844,778.42,777.87,0.8602505]
[1754593172114,0.85588844,778.41,777.87,0.8602505]
[1754593172313,0.85588844,778.4,777.88,0.8602505]
[1754593172614,1.157,778.4,777.88,0.8602505]
[1754593173118,0.85611086,778.39,777.88,0.8602505]
[1754593173318,1.157,778.4,777.87,0.8602505]
[1754593174316,0.85619003,778.39,777.88,0.8602505]
[1754593174617,1.157,778.4,777.88,0.8602505]
[1754593174818,0.85619179,778.39,777.88,0.8602505]
[1754593175116,1.157,778.4,777.88,0.8602505]
[1754593175312,0.85625709,778.39,777.88,0.8602505]
[1754593175514,1.157,778.4,777.88,0.8602505]
[1754593175719,0.85625946,778.39,777.88,0.8602505]
[1754593175919,1.157,778.4,777.88,0.8602505]
[1754593176116,0.85625951,778.39,777.88,0.8602505]
[1754593176313,1.157,778.4,777.88,0.8602505]
[1754593176519,0.85627195,778.39,777.88,0.8602505]
[1754593176717,1.157,778.4,777.88,0.8602505]
[1754593176918,0.85627195,778.39,777.88,0.8602505]
[1754593177115,1.157,778.4,777.88,0.8602505]
[1754593177315,0.85628293,778.39,777.88,0.8602505]
[1754593177614,1.157,778.4,777.88,0.8602505]
[1754593177815,0.85628664,778.39,777.88,0.8602505]
[1754593178019,1.157,778.4,777.88,0.8602505]
[1754593178215,0.85629472,778.39,777.88,0.8602505]
[1754593178415,1.157,778.4,777.88,0.8602505]
[1754593178616,0.85629859,778.39,777.88,0.8602505]
[1754593178820,1.157,778.4,777.88,0.8602505]
[1754593179019,0.85629859,778.39,777.88,0.8602505]
[1754593179218,1.157,778.4,777.88,0.8602505]
[1754593179419,0.85631256,778.39,777.88,0.8602505]
[1754593179616,1.157,778.4,777.88,0.8602505]
[1754593179819,0.85631251,778.39,777.88,0.8602505]
[1754593180121,0.8563214,778.38,777.91,0.8602505]
[1754593180323,0.8563214,778.37,777.91,0.8602505]
[1754593180623,0.8563214,778.36,777.91,0.8602505]
[1754593180816,1.157,778.4,777.91,0.8602505]
[1754593181021,0.85632686,778.39,777.91,0.8602505]
[1754593181221,0.85632686,778.38,777.91,0.8602505]
[1754593181519,0.85632686,778.37,777.91,0.8602505]
[1754593181719,1.157,778.4,777.91,0.8602505]
[1754593181919,0.85634315,778.39,777.91,0.8602505]
[1754593182218,0.85634315,778.38,777.91,0.8602505]
[1754593182419,0.85634315,778.37,777.91,0.8602505]
[1754593182619,0.85634315,778.36,777.91,0.8602505]
[1754593182824,1.157,778.4,777.92,0.8602505]
[1754593183018,0.85635331,778.39,777.92,0.8602505]
[1754593183223,0.85635331,778.38,777.94,0.8602505]
[1754593183518,0.85635331,778.37,777.94,0.8602505]
[1754593183723,0.85635331,778.36,777.94,0.8602505]
[1754593183919,1.157,778.4,777.94,0.8602505]
[1754593184124,0.85636859,778.39,777.93,0.8602505]
[1754593184325,0.85636859,778.38,777.93,0.8602505]
[1754593184622,1.157,778.4,777.93,0.8602505]
[1754593184623,0.85636859,778.37,777.93,0.8602505]
[1754593184820,0.85638974,778.36,777.93,0.8602505]
[1754593185125,1.157,778.4,777.93,0.8602505]
[1754593185323,0.85640753,778.39,777.93,0.8602505]
[1754593185522,0.85640753,778.38,777.93,0.8602505]
[1754593185723,0.85640753,778.37,777.93,0.8602505]
[1754593186025,0.85640753,778.36,777.92,0.8602505]
[1754593186226,1.157,778.4,777.93,0.8602505]
[1754593186227,0.85640753,778.35,777.93,0.8602505]
[1754593186525,1.157,778.4,777.94,0.8602505]
[1754593186722,0.85644187,778.39,777.94,0.8602505]
[1754593186920,0.85644187,778.38,777.94,0.8602505]
[1754593187222,0.85644187,778.37,777.94,0.8602505]
[1754593187526,0.85644187,778.36,777.94,0.8602505]
[1754593187726,0.85644187,778.35,777.94,0.8602505]
[1754593187924,1.157,778.4,777.94,0.8602505]
[1754593188128,0.85646706,778.39,777.94,0.8602505]
[1754593188427,0.85646706,778.38,777.94,0.8602505]
[1754593188626,0.85646706,778.37,777.94,0.8602505]
[1754593188924,0.85646706,778.36,777.94,0.8602505]
[1754593189124,0.85646706,778.35,777.94,0.8602505]
[1754593189427,0.85653355,778.34,777.94,0.8602505]
[1754593189625,1.157,778.4,777.94,0.8602505]
[1754593189828,0.85653355,778.39,777.94,0.8602505]
[1754593190025,0.85653355,778.38,777.94,0.8602505]
[1754593190224,0.85653355,778.37,777.94,0.8602505]
[1754593190425,0.85653355,778.36,777.94,0.8602505]
[1754593190630,0.85653355,778.35,777.94,0.8602505]
[1754593190825,1.157,778.4,777.94,0.8602505]
[1754593191029,0.85657193,778.39,777.94,0.8602505]
[1754593191324,0.85657193,778.38,777.94,0.8602505]
[1754593191525,0.85657193,778.37,777.94,0.8602505]
[1754593191724,0.85657193,778.36,777.94,0.8602505]
[1754593191926,0.85657193,778.35,777.94,0.8602505]
[1754593192125,0.85657193,778.34,777.94,0.8602505]
[1754593192325,0.85657193,778.33,777.94,0.8602505]
[1754593192528,1.157,778.4,777.94,0.8602505]
[1754593192728,0.85665448,778.39,777.94,0.8602505]
[1754593192927,0.85665448,778.38,777.94,0.8602505]
[1754593193127,0.85665448,778.37,777.94,0.8602505]
[1754593193431,0.85665448,778.36,777.94,0.8602505]
[1754593193629,0.85665448,778.35,777.94,0.8602505]
[1754593193827,0.85665448,778.34,777.94,0.8602505]
[1754593194131,0.85665448,778.33,777.95,0.8602505]
[1754593194331,0.85665448,778.32,777.95,0.8602505]
[1754593194529,1.157,778.4,777.93,0.8602505]
[1754593194732,0.85675205,778.39,777.93,0.8602505]
[1754593194930,0.85675205,778.38,777.93,0.8602505]
[1754593195129,0.85675205,778.37,777.93,0.8602505]
[1754593195332,0.85675205,778.36,777.93,0.8602505]
[1754593195628,0.85675205,778.35,777.93,0.8602505]
[1754593195832,0.85675205,778.34,777.93,0.8602505]
[1754593196030,1.157,778.4,777.93,0.8602505]
[1754593196232,0.85685846,778.39,777.93,0.8602505]
[1754593196430,0.85685846,778.38,777.93,0.8602505]
[1754593196633,0.85685846,778.37,777.93,0.8602505]
[1754593196829,0.85686575,778.36,777.93,0.8602505]
[1754593197133,0.85686575,778.35,777.93,0.8602505]
[1754593197330,1.157,778.4,777.81,0.8602505]
[1754593200137,1.157,778.4,777.74,0.8602505]
[1754593200340,1.157,778.4,777.73,0.8602505]
[1754593202041,1.157,778.4,777.74,0.8602505]
[1754593202940,1.157,778.4,777.75,0.8602505]
[1754593203142,1.157,778.4,777.74,0.8602505]
[1754593203337,0.85687088,778.39,777.74,0.8602505]
[1754593203542,1.157,778.4,777.74,0.8602505]
[1754593203839,0.85687088,778.39,777.75,0.8602505]
[1754593204038,0.85687088,778.38,777.75,0.8602505]
[1754593204243,0.85687088,778.37,777.75,0.8602505]
[1754593204445,0.85687088,778.36,777.78,0.8602505]
[1754593204642,0.85687088,778.35,777.78,0.8602505]
[1754593204843,0.85687088,778.34,777.78,0.8602505]
[1754593205043,0.85687088,778.33,777.79,0.8602505]
[1754593205243,0.85687088,778.32,777.79,0.8602505]
[1754593205441,0.85687088,778.31,777.79,0.8602505]
[1754593205642,0.85687088,778.3,777.8,0.8602505]
[1754593205942,0.85687088,778.29,777.81,0.8602505]
[1754593206141,1.157,778.4,777.81,0.8602505]
[1754593206346,0.85672308,778.39,777.81,0.8602505]
[1754593206542,0.85672308,778.38,777.81,0.8602505]
[1754593206843,0.85672308,778.37,777.81,0.8602505]
[1754593207047,0.85672308,778.36,777.84,0.8602505]
[1754593207343,0.85672308,778.35,777.86,0.8602505]
[1754593207543,0.85672308,778.34,777.86,0.8602505]
[1754593207743,0.85672308,778.33,777.86,0.8602505]
[1754593207949,2.02286083,778.4,777.86,0.8602505]
[1754593208148,0.85665743,778.39,777.86,0.8602505]
[1754593208450,0.85665743,778.38,777.86,0.8602505]
[1754593208645,1.157,778.4,777.02,0.22364751]
[1754593208646,0.85665743,778.37,777.88,0.8602505]
[1754593208845,0.85665743,778.36,777.88,0.8602505]
[1754593209049,0.85665743,778.35,777.88,0.8602505]
[1754593209247,0.85665743,778.34,777.88,0.8602505]
[1754593209447,0.85665743,778.33,777.88,0.8602505]
[1754593209651,0.85665743,778.32,777.88,0.8602505]
[1754593209851,0.85665743,778.31,777.88,0.8602505]
[1754593210151,0.85665743,778.3,777.88,0.8602505]
[1754593210351,0.85665743,778.29,777.88,0.8602505]
[1754593210550,0.85665743,778.28,777.88,0.8602505]
[1754593210847,0.85665743,778.27,777.88,0.8602505]
[1754593211047,0.85665743,778.26,777.88,0.8602505]
[1754593211247,1.157,778.4,777.88,0.8602505]
[1754593211449,0.85647551,778.39,777.88,0.8602505]
[1754593211647,0.85647551,778.38,777.88,0.8602505]
[1754593211947,0.85647551,778.37,777.88,0.8602505]
[1754593212148,0.85647551,778.36,777.88,0.8602505]
[1754593212348,0.85647551,778.35,777.88,0.8602505]
[1754593212547,0.85647551,778.34,777.88,0.8602505]
[1754593212751,0.85647551,778.33,777.88,0.8602505]
[1754593212948,0.85647551,778.32,777.88,0.8602505]
[1754593213150,0.85647551,778.31,777.88,0.8602505]
[1754593213448,0.85647551,778.3,777.87,0.8602505]
[1754593213647,0.85647551,778.29,777.87,0.8602505]
[1754593213847,0.85647551,778.28,777.87,0.8602505]
[1754593214051,0.85647551,778.27,777.87,0.8602505]
[1754593214248,1.157,778.4,777.87,0.8602505]
[1754593214448,0.85637935,778.39,777.87,0.8602505]
[1754593214751,0.85637935,778.38,777.87,0.8602505]
[1754593215048,0.85637935,778.37,777.87,0.8602505]
[1754593215251,0.85637935,778.36,777.87,0.8602505]
[1754593215450,0.85637935,778.35,777.87,0.8602505]
[1754593215651,0.85637935,778.34,777.87,0.8602505]
[1754593215852,0.85637935,778.33,777.87,0.8602505]
[1754593216152,0.85637935,778.32,777.87,0.8602505]
[1754593216448,0.85637935,778.31,777.87,0.8602505]
[1754593216649,0.85637935,778.3,777.87,0.8602505]
[1754593216952,0.85637935,778.29,777.88,0.8602505]
[1754593217448,0.856323,778.28,777.87,0.8602505]
[1754593217652,0.856323,778.27,777.87,0.8602505]
[1754593217855,0.86586083,778.43,777.87,0.8602505]
[1754593218054,0.85630624,778.42,777.88,0.8602505]
[1754593218250,0.85630624,778.41,777.85,0.8602505]
[1754593218449,0.85630624,778.4,777.85,0.8602505]
[1754593218648,0.85630624,778.39,777.85,0.8602505]
[1754593218853,0.85630624,778.38,777.85,0.8602505]
[1754593219153,0.85630624,778.37,777.84,0.8602505]
[1754593219350,0.85630624,778.36,777.85,0.8602505]
[1754593219649,0.85630624,778.35,777.85,0.8602505]
[1754593219853,0.85630624,778.34,777.85,0.8602505]
[1754593220155,0.85630624,778.33,777.85,0.8602505]
[1754593220453,0.85630624,778.32,777.85,0.8602505]
[1754593220651,0.85630624,778.31,777.85,0.8602505]
[1754593220854,0.85630624,778.3,777.85,0.8602505]
[1754593221150,0.85630624,778.29,777.85,0.8602505]
[1754593221353,0.981,778.38,777.85,0.8602505]
[1754593221551,0.85623646,778.37,777.85,0.8602505]
[1754593221749,0.85623646,778.36,777.85,0.8602505]
[1754593221953,0.85623646,778.35,777.85,0.8602505]
[1754593222150,0.85623646,778.34,777.84,0.8602505]
[1754593222349,0.85623646,778.33,777.84,0.8602505]
[1754593222551,0.85623646,778.32,777.85,0.8602505]
[1754593222754,0.85623646,778.31,777.85,0.8602505]
[1754593222951,0.85623646,778.3,777.85,0.8602505]
[1754593223156,0.85623646,778.29,777.85,0.8602505]
[1754593223355,0.981,778.38,777.85,0.8602505]
[1754593223655,0.85621444,778.37,777.85,0.8602505]
[1754593223856,0.85621444,778.36,777.85,0.8602505]
[1754593224056,0.85621444,778.35,777.85,0.8602505]
[1754593224251,0.85621444,778.34,777.85,0.8602505]
[1754593224454,0.85621444,778.33,777.85,0.8602505]
[1754593224656,0.85621444,778.32,777.85,0.8602505]
[1754593224956,0.85621444,778.31,777.85,0.8602505]
[1754593225152,0.85621444,778.3,777.85,0.8602505]
[1754593225356,0.85621444,778.29,777.85,0.8602505]
[1754593225554,0.981,778.38,777.85,0.8602505]
[1754593225856,0.85620005,778.37,777.85,0.8602505]
[1754593226055,0.85620005,778.36,777.85,0.8602505]
[1754593226258,0.85620005,778.35,777.85,0.8602505]
[1754593226455,0.85620005,778.34,777.85,0.8602505]
[1754593226660,0.85620005,778.33,777.85,0.8602505]
[1754593226856,0.85620005,778.32,777.85,0.8602505]
[1754593227161,0.85620005,778.31,777.89,0.8602505]
[1754593227360,0.85620005,778.3,777.89,0.8602505]
[1754593227560,0.85620005,778.29,777.89,0.8602505]
[1754593227758,0.85620005,778.28,777.89,0.8602505]
[1754593228058,0.85620005,778.27,777.89,0.8602505]
[1754593228361,0.85620005,778.26,777.89,0.8602505]
[1754593228559,0.981,778.38,777.89,0.8602505]
[1754593228758,0.85593192,778.37,777.89,0.8602505]
[1754593228962,0.85593192,778.36,777.89,0.8602505]
[1754593229158,0.85593192,778.35,777.89,0.8602505]
[1754593229458,0.85593192,778.34,777.9,0.8602505]
[1754593229761,0.85593192,778.33,777.9,0.8602505]
[1754593229958,0.85593192,778.32,777.9,0.8602505]
[1754593230157,0.85593192,778.31,777.9,0.8602505]
[1754593230359,0.981,778.38,777.79,0.8602505]
[1754593230561,0.85592679,778.37,777.79,0.8602505]